{"text_format":"3","workbook":"xlsx","n_sheets":2,"sheets":["Données de croissance","Graphique de croissance"],"not_rendered":{"charts":1,"images":2,"defined_names":3},"read":"whole","date_system":"1900"}

{"sheet":"Données de croissance","index":0,"n_rows":24,"n_cols":10,"rows_kept":24,"merged":[[2,2,2,8],[3,9,5,9],[6,9,8,9],[9,9,11,9],[12,9,14,9],[15,9,17,9],[18,9,20,9],[21,9,23,9]]}
[]
[null,null,"Nom du bébé :","Davide"]
[null,null,"SUIVI DE LA CROISSANCE DE BÉBÉ",{"$nulls":6},1]
[null,null,"Âge","Kilogrammes","Grammes","Poids (kg)","Centile de poids","Taille (cm)","Centile de longueur",2]
[null,null,"Naissance",7,0,{"$f":"IF(COUNT(Données[[#This Row],[Kilogrammes]:[Grammes]])>0,Données[[#This Row],[Kilogrammes]]+(Données[[#This Row],[Grammes]]/16),NA())","v":7},40,19.5,70]
[null,null,"4 jours",6,8,{"$f":"IF(COUNT(Données[[#This Row],[Kilogrammes]:[Grammes]])>0,Données[[#This Row],[Kilogrammes]]+(Données[[#This Row],[Grammes]]/16),NA())","v":6.5},41,19.5,70]
[null,null,"7 jours",6,4.8,{"$f":"IF(COUNT(Données[[#This Row],[Kilogrammes]:[Grammes]])>0,Données[[#This Row],[Kilogrammes]]+(Données[[#This Row],[Grammes]]/16),NA())","v":6.3},42,20,71,3]
[null,null,"11 jours",6,9.6,{"$f":"IF(COUNT(Données[[#This Row],[Kilogrammes]:[Grammes]])>0,Données[[#This Row],[Kilogrammes]]+(Données[[#This Row],[Grammes]]/16),NA())","v":6.6},43,20,71]
[null,null,"14 jours",7,0,{"$f":"IF(COUNT(Données[[#This Row],[Kilogrammes]:[Grammes]])>0,Données[[#This Row],[Kilogrammes]]+(Données[[#This Row],[Grammes]]/16),NA())","v":7},44,20,71]
[null,null,"18 jours",7,12,{"$f":"IF(COUNT(Données[[#This Row],[Kilogrammes]:[Grammes]])>0,Données[[#This Row],[Kilogrammes]]+(Données[[#This Row],[Grammes]]/16),NA())","v":7.75},45,21,72,4]
[null,null,"21 jours",8,8,{"$f":"IF(COUNT(Données[[#This Row],[Kilogrammes]:[Grammes]])>0,Données[[#This Row],[Kilogrammes]]+(Données[[#This Row],[Grammes]]/16),NA())","v":8.5},46,21,72]
[null,null,"25 jours",null,null,{"$f":"IF(COUNT(Données[[#This Row],[Kilogrammes]:[Grammes]])>0,Données[[#This Row],[Kilogrammes]]+(Données[[#This Row],[Grammes]]/16),NA())","v":{"$error":"#N/A"}}]
[null,null,"28 jours",null,null,{"$f":"IF(COUNT(Données[[#This Row],[Kilogrammes]:[Grammes]])>0,Données[[#This Row],[Kilogrammes]]+(Données[[#This Row],[Grammes]]/16),NA())","v":{"$error":"#N/A"}},{"$nulls":3},5]
[null,null,"5 semaines",null,null,{"$f":"IF(COUNT(Données[[#This Row],[Kilogrammes]:[Grammes]])>0,Données[[#This Row],[Kilogrammes]]+(Données[[#This Row],[Grammes]]/16),NA())","v":{"$error":"#N/A"}}]
[null,null,"6 semaines",null,null,{"$f":"IF(COUNT(Données[[#This Row],[Kilogrammes]:[Grammes]])>0,Données[[#This Row],[Kilogrammes]]+(Données[[#This Row],[Grammes]]/16),NA())","v":{"$error":"#N/A"}}]
[null,null,"7 semaines",null,null,{"$f":"IF(COUNT(Données[[#This Row],[Kilogrammes]:[Grammes]])>0,Données[[#This Row],[Kilogrammes]]+(Données[[#This Row],[Grammes]]/16),NA())","v":{"$error":"#N/A"}},{"$nulls":3},6]
[null,null,"2 mois",null,null,{"$f":"IF(COUNT(Données[[#This Row],[Kilogrammes]:[Grammes]])>0,Données[[#This Row],[Kilogrammes]]+(Données[[#This Row],[Grammes]]/16),NA())","v":{"$error":"#N/A"}}]
[null,null,"3 mois",null,null,{"$f":"IF(COUNT(Données[[#This Row],[Kilogrammes]:[Grammes]])>0,Données[[#This Row],[Kilogrammes]]+(Données[[#This Row],[Grammes]]/16),NA())","v":{"$error":"#N/A"}}]
[null,null,"6 mois",null,null,{"$f":"IF(COUNT(Données[[#This Row],[Kilogrammes]:[Grammes]])>0,Données[[#This Row],[Kilogrammes]]+(Données[[#This Row],[Grammes]]/16),NA())","v":{"$error":"#N/A"}}]
[null,null,"9 mois",null,null,{"$f":"IF(COUNT(Données[[#This Row],[Kilogrammes]:[Grammes]])>0,Données[[#This Row],[Kilogrammes]]+(Données[[#This Row],[Grammes]]/16),NA())","v":{"$error":"#N/A"}}]
[null,null,"12 mois",null,null,{"$f":"IF(COUNT(Données[[#This Row],[Kilogrammes]:[Grammes]])>0,Données[[#This Row],[Kilogrammes]]+(Données[[#This Row],[Grammes]]/16),NA())","v":{"$error":"#N/A"}}]
[null,null,"18 mois",null,null,{"$f":"IF(COUNT(Données[[#This Row],[Kilogrammes]:[Grammes]])>0,Données[[#This Row],[Kilogrammes]]+(Données[[#This Row],[Grammes]]/16),NA())","v":{"$error":"#N/A"}}]
[null,null,"24 mois",null,null,{"$f":"IF(COUNT(Données[[#This Row],[Kilogrammes]:[Grammes]])>0,Données[[#This Row],[Kilogrammes]]+(Données[[#This Row],[Grammes]]/16),NA())","v":{"$error":"#N/A"}}]
[null,null,"36 mois",null,null,{"$f":"IF(COUNT(Données[[#This Row],[Kilogrammes]:[Grammes]])>0,Données[[#This Row],[Kilogrammes]]+(Données[[#This Row],[Grammes]]/16),NA())","v":{"$error":"#N/A"}}]

{"sheet":"Graphique de croissance","index":1,"n_rows":0,"n_cols":0,"rows_kept":0}